Workbook

Sheet Route
A2: Day # | B2: DT | C2: Flight | H2: DEST
C3: RT | D3: DIST (NM) | E3: EFT | F3: Time | H3: WT | I3: CD (LT) | J3: SR (LT) | K3: SS (LT) | L3: CD (LT) | M3: TZ | N3: NME | O3: ELEV (ft) | P3: RWY | S3: COM | U3: LAT | W3: LON | Y3: PPR | Z3: tel | AA3: OPER | AB3: Plan in place | AC3: RMK
F4: TO (LT) | G4: LDG (LT) | P4: HD | Q4: SFC | R4: LDA (m) | S4: CS | T4: FRQ | U4: DEG | V4: MIN | W4: DEG | X4: MIN
A5: 1 | B5: 2009-08-09 | C5: LKBE - Riedelbach | D5: 244 | E5: =D5/Config!$B$1/24 -> 02:52:14.118 | F5: 11:00:00 | G5: =F5+E5 -> 13:52:14.118 | H5: 01:00:00 | I5: =dawn(U5+(V5/60),W5+(X5/60),YEAR(B5),MONTH(B5),DAY(B5),M5*24,1,6) -> 05:28:55.802 | J5: =sunrise(U5+(V5/60),W5+(X5/60),YEAR(B5),MONTH(B5),DAY(B5),M5*24,1) -> 06:06:20.448 | K5: =sunset(U5+(V5/60),W5+(X5/60),YEAR(B5),MONTH(B5),DAY(B5),M5*24,1) -> 20:56:33.214 | L5: =dusk(U5+(V5/60),W5+(X5/60),YEAR(B5),MONTH(B5),DAY(B5),M5*24,1,6) -> 21:33:50.790 | M5: =1/24 -> 0.04166666667 | N5: Riedelbach | O5: 1667 | T5: 130.120 | U5: 50 | V5: 18.16683333 | W5: 8 | X5: 22.99333333
C6: Riedelbach - LFAC | D6: 248 | E6: =D6/Config!$B$1/24 -> 02:55:03.529 | F6: =G5+H5 -> 14:52:14.118 | G6: =F6+E6 -> 17:47:17.647 | I6: =dawn(U6+(V6/60),W6+(X6/60),YEAR(B5),MONTH(B5),DAY(B5),M6*24,1,6) -> 05:51:52.810 | J6: =sunrise(U6+(V6/60),W6+(X6/60),YEAR(B5),MONTH(B5),DAY(B5),M6*24,1) -> 06:30:01.017 | K6: =sunset(U6+(V6/60),W6+(X6/60),YEAR(B5),MONTH(B5),DAY(B5),M6*24,1) -> 21:24:17.535 | L6: =dusk(U6+(V6/60),W6+(X6/60),YEAR(B5),MONTH(B5),DAY(B5),M6*24,1,6) -> 22:02:18.205 | M6: =1/24 -> 0.04166666667 | N6: Calais | O6: 12 | P6: 06/24 | Q6: asphalt | R6: 1535 | S6: LILLE INFO | T6: 134.820 | U6: 50 | V6: 57.6 | W6: 1 | X6: 57.1 | AB6: Dinner, walk, customs | AC6: WND <4kt => RIU 24; WRNG sea fog
S7: ATIS | T7: 135.450
S8: LILLE APP | T8: 120.270
S9: CALAIS TWR | T9: 128.920
A10: 2 | B10: 2009-08-10 | C10: LFAC - EGNV | D10: 257 | E10: =D10/Config!$B$1/24 -> 03:01:24.706 | F10: 10:00:00 | G10: =F10+E10 -> 13:01:24.706 | H10: 01:00:00 | I10: =dawn(U10+(V10/60),W10+(X10/60),YEAR(B10),MONTH(B10),DAY(B10),M10*24,1,6) -> 04:38:48.834 | J10: =sunrise(U10+(V10/60),W10+(X10/60),YEAR(B10),MONTH(B10),DAY(B10),M10*24,1) -> 05:21:24.045 | K10: =sunset(U10+(V10/60),W10+(X10/60),YEAR(B10),MONTH(B10),DAY(B10),M10*24,1) -> 20:36:34.521 | L10: =dusk(U10+(V10/60),W10+(X10/60),YEAR(B10),MONTH(B10),DAY(B10),M10*24,1,6) -> 21:18:58.899 | M10: 0 | N10: Durham Tees Valley | O10: 120 | P10: 05/23 | Q10: asphalt | R10: =7516*0.305 -> 2292.38 | S10: London INFO | T10: 125.470 | U10: 54 | V10: 30.5 | W10: 1 | X10: 25.8 | AC10: High visibility jackets
S11: ATIS | T11: 132.375 | 136.200
S12: Durham APP | T12: 118.850
S13: Durham Dir RDR | T13: 128.850
S14: Durham RDR | T14: 118.850
S15: Durham TWR | T15: 119.800
C16: EGNV - EGPH | D16: 109 | E16: =D16/Config!$B$1/24 -> 01:16:56.471 | F16: =G10+H10 -> 14:01:24.706 | G16: =F16+E16 -> 15:18:21.176 | I16: =dawn(U16+(V16/60),W16+(X16/60),YEAR(B10),MONTH(B10),DAY(B10),M16*24,1,6) -> 04:49:58.300 | J16: =sunrise(U16+(V16/60),W16+(X16/60),YEAR(B10),MONTH(B10),DAY(B10),M16*24,1) -> 05:34:55.853 | K16: =sunset(U16+(V16/60),W16+(X16/60),YEAR(B10),MONTH(B10),DAY(B10),M16*24,1) -> 21:01:21.216 | L16: =dusk(U16+(V16/60),W16+(X16/60),YEAR(B10),MONTH(B10),DAY(B10),M16*24,1,6) -> 21:46:05.818 | M16: 0 | N16: Edinburgh | O16: 136 | P16: 06/24 | Q16: asphalt | R16: =8389*0.305 -> 2558.645 | S16: Scottish INFO | T16: 119.870 | U16: 55 | V16: 57 | W16: -3 | X16: -22.3 | AB16: City walk, castle | AC16: VIS MNM 3KM ALT MAX 2000 APP via lanes - Polmont, Kelty
P17: 12/30 | Q17: asphalt | R17: =5899*0.305 -> 1799.195 | S17: ATIS | T17: 131.350
S18: Edinburgh RDR | T18: 128.975
S19: Edinburgh RDR | T19: 121.200
S20: Edinburgh APP | T20: 121.200
S21: Edinburgh TWR | T21: 118.700
S22: Edinburgh GND | T22: 121.750
A23: 3 | B23: 2009-08-11 | C23: EGPH - EGPE | D23: 98.1 | E23: =D23/Config!$B$1/24 -> 01:09:14.824 | F23: 10:00:00 | G23: =F23+E23 -> 11:09:14.824 | I23: =dawn(U23+(V23/60),W23+(X23/60),YEAR(B23),MONTH(B23),DAY(B23),M23*24,1,6) -> 04:45:12.276 | J23: =sunrise(U23+(V23/60),W23+(X23/60),YEAR(B23),MONTH(B23),DAY(B23),M23*24,1) -> 05:32:49.991 | K23: =sunset(U23+(V23/60),W23+(X23/60),YEAR(B23),MONTH(B23),DAY(B23),M23*24,1) -> 21:08:24.289 | L23: =dusk(U23+(V23/60),W23+(X23/60),YEAR(B23),MONTH(B23),DAY(B23),M23*24,1,6) -> 21:55:46.401 | M23: 0 | N23: Inverness | O23: 31 | P23: 05/23 | Q23: asphalt | R23: =6191*0.305 -> 1888.255 | S23: Scottish INFO | T23: 129.220 | U23: 57 | V23: 32.5 | W23: -4 | X23: -2.8 | Y23: X | AB23: Trip to Loch-Ness, probably a car will be needed
P24: 12/30 | Q24: asphalt | R24: =2297*0.305 -> 700.585 | S24: ATIS | T24: 109.200
S25: Inverness RDR | T25: 122.600
S26: Inverness APP | T26: 122.600
S27: Inverness TWR | T27: 122.600
S28: Inverness TWR | T28: 118.400
A29: 4 | B29: 2009-08-12 | C29: EGPE - EGAE | D29: 182 | E29: =D29/Config!$B$1/24 -> 02:08:28.235 | F29: 10:00:00 | G29: =F29+E29 -> 12:08:28.235 | H29: 01:00:00 | I29: =dawn(U29+(V29/60),W29+(X29/60),YEAR(B29),MONTH(B29),DAY(B29),M29*24,1,6) -> 05:14:38.429 | J29: =sunrise(U29+(V29/60),W29+(X29/60),YEAR(B29),MONTH(B29),DAY(B29),M29*24,1) -> 05:57:28.124 | K29: =sunset(U29+(V29/60),W29+(X29/60),YEAR(B29),MONTH(B29),DAY(B29),M29*24,1) -> 21:08:32.314 | L29: =dusk(U29+(V29/60),W29+(X29/60),YEAR(B29),MONTH(B29),DAY(B29),M29*24,1,6) -> 21:51:11.055 | M29: 0 | N29: Londonderry | O29: 22 | P29: 08/26 | Q29: asphalt | R29: =6453*0.305 -> 1968.165 | S29: Scottish INFO | T29: 127.270 | U29: 55 | V29: 2.6 | W29: -7 | X29: -9.7 | Y29: X | AB29: Customs | AC29: RWY 26 - preffered APP Routing VRP High visibility vests
S30: Eglinton APP | T30: 123.625
S31: Eglinton TWR | T31: 134.150
C32: EGAE - EIKY | D32: 192 | E32: =D32/Config!$B$1/24 -> 02:15:31.765 | F32: =G29+H29 -> 13:08:28.235 | G32: =F32+E32 -> 15:24:00 | I32: =dawn(U32+(V32/60),W32+(X32/60),YEAR(B29),MONTH(B29),DAY(B29),M32*24,1,6) -> 05:38:02.350 | J32: =sunrise(U32+(V32/60),W32+(X32/60),YEAR(B29),MONTH(B29),DAY(B29),M32*24,1) -> 06:16:58.103 | K32: =sunset(U32+(V32/60),W32+(X32/60),YEAR(B29),MONTH(B29),DAY(B29),M32*24,1) -> 21:08:27.790 | L32: =dusk(U32+(V32/60),W32+(X32/60),YEAR(B29),MONTH(B29),DAY(B29),M32*24,1,6) -> 21:47:15.550 | M32: 0 | N32: Kerry | O32: 112 | P32: 08/26 | Q32: asphalt | R32: =6562*0.305 -> 2001.41 | S32: Shannon CTRL | T32: 124.700 | U32: 52 | V32: 10.9 | W32: -9 | X32: -34.1 | Y32: X | AB32: http://goireland.about.com/od/corkandmunster/qt/killarney.htm
S33: ATIS | T33: 118.025
S34: Kerry TWR | T34: 123.325
S35: Kerry GND | T35: 121.600
A36: 5 | B36: 2009-08-13 | C36: EIKY - EGGD | D36: 264 | E36: =D36/Config!$B$1/24 -> 03:06:21.176 | F36: 10:00:00 | G36: =F36+E36 -> 13:06:21.176 | H36: 01:00:00 | I36: =dawn(U36+(V36/60),W36+(X36/60),YEAR(B36),MONTH(B36),DAY(B36),M36*24,1,6) -> 05:15:47.847 | J36: =sunrise(U36+(V36/60),W36+(X36/60),YEAR(B36),MONTH(B36),DAY(B36),M36*24,1) -> 05:53:36.328 | K36: =sunset(U36+(V36/60),W36+(X36/60),YEAR(B36),MONTH(B36),DAY(B36),M36*24,1) -> 20:36:43.047 | L36: =dusk(U36+(V36/60),W36+(X36/60),YEAR(B36),MONTH(B36),DAY(B36),M36*24,1,6) -> 21:14:24.311 | M36: 0 | N36: Bristol | O36: 622 | P36: 09/27 | Q36: asphalt | R36: =6598*0.305 -> 2012.39 | S36: London INFO | T36: 124.750 | U36: 51 | V36: 23 | W36: -2 | X36: -43.1 | AB36: Customs
S37: ATIS | T37: 126.025
S38: Bristol RDR | T38: 125.650
S39: Bristol RDR | T39: 136.075
S40: Bristol TWR | T40: 133.850
S41: Bristol GND | T41: 121.925
C42: EGGD - EGLS | D42: 39 | E42: =D42/Config!$B$1/24 -> 00:27:31.765 | F42: =G36+H36 -> 14:06:21.176 | G42: =F42+E42 -> 14:33:52.941 | I42: =dawn(U42+(V42/60),W42+(X42/60),YEAR(B36),MONTH(B36),DAY(B36),M42*24,1,6) -> 05:13:12.700 | J42: =sunrise(U42+(V42/60),W42+(X42/60),YEAR(B36),MONTH(B36),DAY(B36),M42*24,1) -> 05:50:42.531 | K42: =sunset(U42+(V42/60),W42+(X42/60),YEAR(B36),MONTH(B36),DAY(B36),M42*24,1) -> 20:32:08.967 | L42: =dusk(U42+(V42/60),W42+(X42/60),YEAR(B36),MONTH(B36),DAY(B36),M42*24,1,6) -> 21:09:31.775 | M42: 0 | N42: Old Sarum | O42: 285 | P42: 06/24 | Q42: grass | R42: =2562*0.305 -> 781.41 | S42: London INFO | T42: 124.750 | U42: 51 | V42: 5.9 | W42: -1 | X42: -47 | Y42: X | AB42: Stonehenge visit | AC42: CTAC Boscombe Zone in case MATZ active CLSD after 1700 LT
S43: Boscombe Zone | T43: 126.700
S44: Old Sarum Radio | T44: 123.200
A45: 6 | B45: 2009-08-14 | C45: NIL | AB45: Trip to Stonehenge
A46: 7 | B46: 2009-08-15 | C46: EGLS - LFOZ | D46: 269 | E46: =D46/Config!$B$1/24 -> 03:09:52.941 | F46: 10:00:00 | G46: =F46+E46 -> 13:09:52.941 | H46: 01:00:00 | I46: =dawn(U46+(V46/60),W46+(X46/60),YEAR(B46),MONTH(B46),DAY(B46),M46*24,1,6) -> 06:12:14.893 | J46: =sunrise(U46+(V46/60),W46+(X46/60),YEAR(B46),MONTH(B46),DAY(B46),M46*24,1) -> 06:46:23.200 | K46: =sunset(U46+(V46/60),W46+(X46/60),YEAR(B46),MONTH(B46),DAY(B46),M46*24,1) -> 21:04:16.723 | L46: =dusk(U46+(V46/60),W46+(X46/60),YEAR(B46),MONTH(B46),DAY(B46),M46*24,1,6) -> 21:38:19.959 | M46: 0.04166666667 | N46: St. Denis de L'hotel | O46: 396 | P46: 05/23 | Q46: paved | R46: =4567*0.305 -> 1392.935 | S46: Sene INFO | T46: 118.050 | U46: 47 | V46: 53.8 | W46: 2 | X46: 9.8 | Y46: X | AB46: Customs | AC46: ULM authorization WND <4kt => RWY 23 LDG susp if GLD on GRS RWY on adjanced half
S47: Bricy APP | T47: 122.700
S48: Saint Denis Multicom | T48: 122.400
S49: Saint Denis AFIS | T49: 122.400
C50: LFOZ - LFQG | D50: 76 | E50: =D50/Config!$B$1/24 -> 00:53:38.824 | F50: =G46+H46 -> 14:09:52.941 | G50: =F50+E50 -> 15:03:31.765 | I50: =dawn(U50+(V50/60),W50+(X50/60),YEAR(B46),MONTH(B46),DAY(B46),M50*24,1,6) -> 06:11:18.530 | J50: =sunrise(U50+(V50/60),W50+(X50/60),YEAR(B46),MONTH(B46),DAY(B46),M50*24,1) -> 06:44:43.748 | K50: =sunset(U50+(V50/60),W50+(X50/60),YEAR(B46),MONTH(B46),DAY(B46),M50*24,1) -> 20:58:23.966 | L50: =dusk(U50+(V50/60),W50+(X50/60),YEAR(B46),MONTH(B46),DAY(B46),M50*24,1,6) -> 21:31:44.460 | M50: 0.04166666667 | N50: Fourchambault | O50: 602 | P50: 12/30 | Q50: paved | R50: =5348*0.305 -> 1631.14 | S50: Paris South INFO | T50: 126.100 | U50: 47 | V50: 0.2 | W50: 3 | X50: 6.6 | AB50: Old town visit | AC50: WND <4kt => RWY 30
S51: Avord APP (>=2100') | T51: 119.700
S52: Nevers Multicom | T52: 120.600
S53: Nevers INFO | T53: 120.600
A54: 8 | B54: 2009-08-16 | C54: LFQG - EDTW | D54: 230 | E54: =D54/Config!$B$1/24 -> 02:42:21.176 | F54: 10:00:00 | G54: =F54+E54 -> 12:42:21.176 | H54: 01:00:00 | I54: =dawn(U54+(V54/60),W54+(X54/60),YEAR(B54),MONTH(B54),DAY(B54),M54*24,1,6) -> 05:47:25.219 | J54: =sunrise(U54+(V54/60),W54+(X54/60),YEAR(B54),MONTH(B54),DAY(B54),M54*24,1) -> 06:21:44.281 | K54: =sunset(U54+(V54/60),W54+(X54/60),YEAR(B54),MONTH(B54),DAY(B54),M54*24,1) -> 20:38:23.333 | L54: =dusk(U54+(V54/60),W54+(X54/60),YEAR(B54),MONTH(B54),DAY(B54),M54*24,1,6) -> 21:12:37.278 | M54: 0.04166666667 | N54: Schramberg | O54: 2202 | P54: 15/33 | Q54: asphalt | R54: =2310*0.305 -> 704.55 | S54: Langen INFO | T54: 128.950 | U54: 48 | V54: 16.8 | W54: 8 | X54: 25.7 | Y54: X | AB54: Refueling Probably we split here | AC54: Flashing of yellow gliderwintch = no LDG/TKOF
S55: Winzel INFO <=3000' | T55: 123.650
C56: EDTW - LKBE | D56: 261 | E56: =D56/Config!$B$1/24 -> 03:04:14.118 | F56: =G54+H54 -> 13:42:21.176 | G56: =F56+E56 -> 16:46:35.294 | I56: =dawn(U56+(V56/60),W56+(X56/60),YEAR(B52),MONTH(B52),DAY(B52),M56*24,1,6) -> 07:36:57.776 | J56: =sunrise(U56+(V56/60),W56+(X56/60),YEAR(B52),MONTH(B52),DAY(B52),M56*24,1) -> 07:59:26.667 | K56: =sunset(U56+(V56/60),W56+(X56/60),YEAR(B52),MONTH(B52),DAY(B52),M56*24,1) -> 20:06:55.836 | L56: =dusk(U56+(V56/60),W56+(X56/60),YEAR(B52),MONTH(B52),DAY(B52),M56*24,1,6) -> 20:29:24.350 | M56: 0.04166666667 | N56: Benešov
A57: Total | D57: =SUM(D5:D56) -> 2469.1 | E57: =SUM(E5:E56) -> 1.210343137
C58: Key event

Sheet Other AD
A1: Sligo | B1: 11 | C1: 11/29 | D1: asphalt | E1: =3934*0.305 -> 1199.87 | F1: Shannon CTRL | G1: 124.700 | H1: 54 | I1: 16.8 | J1: -8 | K1: -36 | L1: X | P1: Strictly PPR for UL
F2: Sligo Info (AFIS) | G2: 122.100
F3: Sligo TWR | G3: 122.100
F4: Sligo GND | G4: 122.100

Sheet Costs
A1: Total | B1: =SUM(B4:B44)+SUM(E4:E44) -> 3849.475059 | C1: EUR | D1: =B1*Config!B3 -> 109209.6074 | E1: CZK
A2: Total per person | B2: =B1/2 -> 1924.737529 | C2: EUR | D2: =D1/2 -> 54604.80371 | E2: =E1 -> CZK
A4: Petrol | B4: =Config!B2*Config!B4*Route!E57*24 -> 1068.975059 | C4: EUR | D4: =B4*Config!$B$3 -> 30326.82242 | E4: CZK
A5: LDG | B5: =(COUNT(Route!D3:D134)-1)*Config!B6 -> 520 | C5: EUR | D5: =B5*Config!$B$3 -> 14752.4 | E5: CZK
A6: Hangar | B6: =(COUNT(Route!A5:A164)-1)*Config!B5 -> 210 | C6: EUR | D6: =B6*Config!$B$3 -> 5957.7 | E6: CZK
A7: Accomodation | B7: =(COUNT(Route!A5:A164)-1)*Config!B7 -> 420 | C7: EUR | D7: =B7*Config!$B$3 -> 11915.4 | E7: CZK
A8: Transport | B8: =(COUNT(Route!A5:A164)-1)*2*Config!B8 -> 210 | C8: EUR | D8: =B8*Config!$B$3 -> 5957.7 | E8: CZK
A9: Meal | B9: =(COUNT(Route!A5:A164)-1)*2*Config!B9*2 -> 980 | C9: EUR | D9: =B9*Config!$B$3 -> 27802.6 | E9: CZK
A10: Printed maps | B10: =15*11.5 -> 172.5 | C10: EUR | D10: =B10*Config!$B$3 -> 4893.825 | E10: CZK | F10: 15 Jepp maps - EG1-5; EI1-2; EG/LF; LF2,3,5; EB/EH; ED2,5,6
A11: Rasters Jepp maps | B11: 268 | C11: EUR | D11: =B11*Config!$B$3 -> 7603.16 | E11: CZK | F11: full EU because of other routes planned for this year

Sheet Config
A1: AVG GS | B1: 85 | C1: kt
A2: CONS | B2: 16 | C2: l / h
A3: 1 EUR | B3: 28.37 | C3: CZK
A4: AVGAS | B4: 2.3 | C4: EUR / l
A5: Hangar | B5: 30 | C5: EUR / day
A6: LDG fee | B6: 40 | C6: EUR / LDG
A7: Accomodation | B7: 60 | C7: EUR / night
A8: Transport | B8: 15 | C8: EUR / fare
A9: Lunch / dinner | B9: 35 | C9: EUR

Sheet Sheet1
A1: 50 | B1: 18 | C1: 10.01
A2: 8 | B2: 22 | C2: 59.6 | E2: =A1 -> 50 | F2: =B1+(C1/60) -> 18.16683333 | G2: =A2 -> 8 | H2: =B2+(C2/60) -> 22.99333333
